fUST/lending_fUST_20250819
["ID","MTS","AMOUNT","RATE_DAILY","PERIOD"]
[380228836,1755618651919,-480.0,0.00020273,2]
[380228837,1755618651929,-480.0,0.00020273,2]
[380228838,1755618651939,-480.0,0.00020273,2]
[380228839,1755618651949,-480.0,0.00020273,2]
[380228840,1755618651958,-505.83,0.00020273,2]
[380228841,1755618651968,-480.0,0.00020273,2]
[380228842,1755618651977,-480.0,0.00020273,2]
[380228843,1755618651986,-350.0,0.00020273,2]
[380228844,1755618651996,-480.0,0.00020273,2]
[380228845,1755618652005,-480.0,0.00020273,2]
[380228846,1755618652014,-460.0,0.00020273,2]
[380228847,1755618652024,-480.0,0.00020273,2]
[380228848,1755618652033,-480.0,0.00020273,2]
[380228849,1755618652043,-8244.61,0.00020273,2]
[380228850,1755618652053,-480.0,0.00020273,2]
[380228851,1755618652062,-480.0,0.00020273,2]
[380228852,1755618652071,-659.66,0.00020273,2]
[380228853,1755618652081,-551.40395806,0.00020273,2]
[380228854,1755618652092,-976.04,0.00020273,2]
[380228855,1755618652101,-480.0,0.00020273,2]
[380228856,1755618652111,-625.16,0.00020273,2]
[380228857,1755618652121,-480.0,0.00020273,2]
[380228858,1755618652130,-480.0,0.00020273,2]
[380228859,1755618652140,-547.61,0.00020273,2]
[380228860,1755618652149,-604.27,0.00020273,2]
[380228861,1755618652159,-747.0,0.00020273,2]
[380228862,1755618652177,-480.0,0.00020273,2]
[380228863,1755618652190,-480.0,0.00020273,2]
[380228864,1755618652200,-480.0,0.00020273,2]
[380228865,1755618652210,-480.0,0.00020273,2]
[380228866,1755618652220,-480.0,0.00020273,2]
[380228867,1755618652230,-480.0,0.00020273,2]
[380228868,1755618652240,-800.68,0.00020273,2]
[380228869,1755618652250,-482.45527504,0.00020273,2]
[380228870,1755618652260,-480.0,0.00020273,2]
[380228871,1755618652270,-463.57777023,0.00020273,2]
[380228872,1755618652430,-547.63,0.00020273,2]
[380228873,1755618652440,-480.0,0.00020273,2]
[380228874,1755618652449,-9407.72,0.00020273,2]
[380228875,1755618652459,-830.84,0.00020273,2]
[380228876,1755618652469,-480.0,0.00020273,2]
[380228877,1755618652478,-480.0,0.00020273,2]
[380228878,1755618652488,-571.94,0.00020273,2]
[380228879,1755618652499,-480.0,0.00020273,2]
[380228880,1755618652511,-480.0,0.00020273,2]
[380228881,1755618652523,-480.0,0.00020273,2]
[380228882,1755618652533,-278.86156771,0.00020273,2]
[380228883,1755618652543,-544.61,0.00020273,2]
[380228884,1755618652552,-502.17,0.00020273,2]
[380228885,1755618652562,-480.0,0.00020273,2]
[380228886,1755618652571,-1037.36,0.00020273,2]
[380228887,1755618652581,-480.0,0.00020273,2]
[380228888,1755618652592,-480.0,0.00020273,2]
[380228889,1755618652601,-480.0,0.00020273,2]
[380228890,1755618652612,-742.49,0.00020273,2]
[380228891,1755618652622,-1543.75,0.00020273,2]
[380228892,1755618652633,-612.50321559,0.00020273,2]
[380228893,1755618652643,-480.0,0.00020273,2]
[380228894,1755618652652,-480.0,0.00020273,2]
[380228895,1755618652662,-480.0,0.00020273,2]
[380228896,1755618652672,-480.0,0.00020273,2]
[380228897,1755618652682,-480.0,0.00020273,2]
[380228898,1755618652692,-2717.77,0.00020273,2]
[380228899,1755618652702,-1344.35,0.00020273,2]
[380228900,1755618652712,-1307.59,0.00020273,2]
[380228901,1755618652722,-1327.62,0.00020273,2]
[380228902,1755618652732,-480.0,0.00020273,2]
[380228903,1755618652742,-532.20122534,0.00020273,2]
[380228904,1755618652751,-595.01,0.00020273,2]
[380228905,1755618652762,-961.07,0.00020273,2]
[380228906,1755618652773,-480.0,0.00020273,2]
[380228907,1755618652783,-1261.24,0.00020273,2]
[380228908,1755618652793,-1125.26,0.00020273,2]
[380228909,1755618652803,-480.0,0.00020273,2]
[380228910,1755618652813,-640.29,0.00020273,2]
[380228911,1755618652823,-480.0,0.00020273,2]
[380228912,1755618652832,-480.0,0.00020273,2]
[380228913,1755618652843,-480.0,0.00020273,2]
[380228914,1755618652852,-836.41,0.00020273,2]
[380228915,1755618652861,-587.75,0.00020273,2]
[380228916,1755618652871,-502.07,0.00020273,2]
[380228917,1755618652881,-1137.61,0.00020273,2]
[380228918,1755618652890,-954.51,0.00020273,2]
[380228919,1755618652899,-1343.33,0.00020273,2]
[380228920,1755618652908,-947.83,0.00020273,2]
[380228921,1755618652918,-480.0,0.00020273,2]
[380228922,1755618652927,-524.82,0.00020273,2]
[380228923,1755618652937,-483.68,0.00020273,2]
[380228924,1755618652946,-390.93956601,0.00020273,2]
[380228925,1755618652955,-480.0,0.00020273,2]
[380228926,1755618652965,-500.07,0.00020273,2]
[380228927,1755618652974,-2586.75,0.00020273,2]
[380228928,1755618652984,-602.28,0.00020273,2]
[380228929,1755618652993,-999.92,0.00020273,2]
[380228930,1755618653002,-480.0,0.00020273,2]
[380228931,1755618653012,-480.0,0.00020273,2]
[380228932,1755618653021,-569.41,0.00020273,2]
[380228933,1755618653031,-762.55,0.00020273,2]
[380228934,1755618653040,-480.0,0.00020273,2]
[380228935,1755618653050,-480.0,0.00020273,2]
[380228936,1755618653060,-480.0,0.00020273,2]
[380228937,1755618653070,-480.0,0.00020273,2]
[380228938,1755618653079,-480.0,0.00020273,2]
[380228939,1755618653088,-480.0,0.00020273,2]
[380228940,1755618653098,-1158.3,0.00020273,2]
[380228941,1755618653107,-769.12,0.00020273,2]
[380228942,1755618653117,-1160.5,0.00020273,2]
[380228943,1755618653126,-1823.15,0.00020273,2]
[380228944,1755618653136,-480.0,0.00020273,2]
[380228945,1755618653145,-935.01,0.00020273,2]
[380228946,1755618653155,-377.19359261,0.00020273,2]
[380228947,1755618653164,-1886.12,0.00020273,2]
[380228948,1755618653174,-480.0,0.00020273,2]
[380228949,1755618653183,-500.0,0.00020274,2]
[380228950,1755618653194,-7137.92033347,0.00020313,2]
[380228951,1755618653204,-329.35962668,0.00020321,2]
[380228952,1755618653215,-1000.0,0.00020321,2]
[380228953,1755618653225,-151.0,0.00020321,2]
[380228954,1755618653235,-223.260542,0.00020321,2]
[380228955,1755618653245,-151.0,0.00020321,2]
[380228956,1755618653255,-151.0,0.00020321,2]
[380228957,1755618653265,-151.0,0.00020321,2]
[380228958,1755618653274,-151.0,0.00020321,2]
[380228959,1755618653284,-151.0,0.00020321,2]
[380228960,1755618653294,-5000.0,0.00020323,2]
[380228961,1755618653305,-7921.37842602,0.00020448,2]
[380228962,1755618653316,-1000.0,0.00020521,2]
[380228963,1755618653326,-572.03085935,0.00020521,2]
[380228964,1755618653336,-500.0,0.00020521,2]
[380228965,1755618653347,-1000.0,0.00020521,2]
[380228966,1755618653356,-1000.0,0.00020521,2]
[380228967,1755618653367,-1000.0,0.00020521,2]
[380228968,1755618653377,-1000.0,0.00020521,2]
[380228969,1755618653390,-500.93475902,0.00020521,2]
[380228970,1755618653399,-1000.0,0.00020521,2]
[380228971,1755618653408,-1000.0,0.00020521,2]
[380228972,1755618653418,-571.95782399,0.00020521,2]
[380228973,1755618653428,-659.48,0.00020538,3]
[380228974,1755618653437,-151.0,0.00020545,2]
[380228975,1755618653446,-151.0,0.00020545,2]
[380228976,1755618653455,-151.0,0.00020545,2]
[380228977,1755618653465,-151.0,0.00020545,2]
[380228978,1755618653474,-151.0,0.00020545,2]
[380228979,1755618653483,-151.0,0.00020545,2]
[380228980,1755618653492,-151.0,0.00020545,2]
[380228981,1755618653502,-151.0,0.00020545,2]
[380228982,1755618653511,-151.0,0.00020545,2]
[380228983,1755618653520,-151.0,0.00020545,2]
[380228984,1755618653529,-480.0,0.00020547,2]
[380228985,1755618653538,-480.0,0.00020547,2]
[380228986,1755618653548,-1576.07,0.00020547,2]
[380228987,1755618653557,-480.0,0.00020547,2]
[380228988,1755618653567,-480.0,0.00020547,2]
[380228989,1755618653576,-480.0,0.00020547,2]
[380228990,1755618653586,-480.0,0.00020547,2]
[380228991,1755618653597,-2883.4,0.00020547,2]
[380228992,1755618653606,-384.84335385,0.00020547,2]
[380228993,1755618653616,-480.0,0.00020547,2]
[380228994,1755618653625,-340.0,0.00020547,2]
[380228995,1755618653635,-151.0,0.00020547,2]
[380228996,1755618653644,-151.0,0.00020547,2]
[380228997,1755618653654,-480.0,0.00020547,2]
[380228998,1755618653663,-151.0,0.00020547,2]
[380228999,1755618653673,-480.0,0.00020547,2]
[380229000,1755618653682,-480.0,0.00020547,2]
[380229001,1755618653693,-480.0,0.00020547,2]
[380229002,1755618653702,-610.46,0.00020547,2]
[380229003,1755618653712,-480.0,0.00020547,2]
[380229004,1755618653721,-151.0,0.00020547,2]
[380229005,1755618653732,-480.0,0.00020547,2]
[380229006,1755618653741,-522.41,0.00020547,2]
[380229007,1755618653750,-480.0,0.00020547,2]
[380229008,1755618653761,-2992.99,0.00020547,2]
[380229009,1755618653775,-480.0,0.00020547,2]
[380229010,1755618653784,-480.0,0.00020547,2]
[380229011,1755618653795,-480.0,0.00020547,2]
[380229012,1755618653804,-480.0,0.00020547,2]
[380229013,1755618653814,-824.41,0.00020547,2]
[380229014,1755618653823,-480.0,0.00020547,2]
[380229015,1755618653833,-480.0,0.00020547,2]
[380229016,1755618653845,-480.0,0.00020547,2]
[380229017,1755618653855,-191.97654889,0.00020547,2]
[380229018,1755618653864,-151.0,0.00020547,2]
[380229019,1755618653874,-489.17,0.00020547,2]
[380229020,1755618653883,-548.22,0.00020547,2]
[380229021,1755618653895,-480.0,0.00020547,2]
[380229022,1755618653906,-480.0,0.00020547,2]
[380229023,1755618653915,-520.07,0.00020547,2]
[380229024,1755618653924,-480.0,0.00020547,2]
[380229025,1755618653940,-1198.36,0.00020547,2]
[380229026,1755618653952,-480.0,0.00020547,2]
[380229027,1755618653962,-151.0,0.00020547,2]
[380229028,1755618653972,-151.0,0.00020547,2]
[380229029,1755618653982,-480.0,0.00020547,2]
[380229030,1755618653992,-151.0,0.00020547,2]
[380229031,1755618654001,-151.0,0.00020547,2]
[380229032,1755618654011,-480.0,0.00020547,2]
[380229033,1755618654021,-1089.51,0.00020547,2]
[380229034,1755618654031,-543.75,0.00020547,2]
[380229035,1755618654041,-480.0,0.00020547,2]
[380229036,1755618654054,-1866.23,0.00020547,2]
[380229037,1755618654069,-490.42,0.00020547,2]
[380229038,1755618654078,-151.0,0.00020547,2]
[380229039,1755618654090,-808.6,0.00020547,2]
[380229040,1755618654100,-1534.07,0.00020547,2]
[380229041,1755618654109,-151.0,0.00020547,2]
[380229042,1755618654118,-782.67,0.00020547,2]
[380229043,1755618654127,-480.0,0.00020547,2]
[380229044,1755618654137,-151.0,0.00020547,2]
[380229045,1755618654146,-151.0,0.00020547,2]
[380229046,1755618654156,-2156.47,0.00020547,2]
[380229047,1755618654166,-850.8,0.00020547,2]
[380229048,1755618654176,-533.17,0.00020547,2]
[380229049,1755618654185,-480.0,0.00020547,2]
[380229050,1755618654194,-151.0,0.00020547,2]
[380229051,1755618654204,-151.0,0.00020547,2]
[380229052,1755618654213,-151.0,0.00020547,2]
[380229053,1755618654223,-1568.73,0.00020547,2]
[380229054,1755618654233,-480.0,0.00020547,2]
[380229055,1755618654242,-480.0,0.00020547,2]
[380229056,1755618654252,-464.84837285,0.00020547,2]
[380229057,1755618654261,-480.0,0.00020547,2]
[380229058,1755618654271,-480.0,0.00020547,2]
[380229059,1755618654281,-480.0,0.00020547,2]
[380229060,1755618654290,-151.0,0.00020547,2]
[380229061,1755618654300,-480.0,0.00020547,2]
[380229062,1755618654309,-505.83,0.00020547,2]
[380229063,1755618654319,-301.547,0.00020547,2]
[380229064,1755618654328,-308.24836458,0.00020547,2]
[380229065,1755618654339,-444.88236222,0.00020547,2]
[380229066,1755618654349,-480.0,0.00020547,2]
[380229067,1755618654358,-220.1,0.00020547,3]
[380229068,1755618654367,-480.0,0.00020547,2]
[380229069,1755618654377,-480.0,0.00020547,2]
[380229070,1755618654386,-8244.61,0.00020547,2]
[380229071,1755618654396,-440.078515,0.00020547,2]
[380229072,1755618654415,-440.078515,0.00020547,2]
[380229073,1755618654425,-440.078515,0.00020547,2]
[380229074,1755618654435,-440.078515,0.00020547,2]
[380229075,1755618654444,-480.0,0.00020547,2]
[380229076,1755618654454,-659.66,0.00020547,2]
[380229077,1755618654463,-976.04,0.00020547,2]
[380229078,1755618654570,-480.0,0.00020547,2]
[380229079,1755618654579,-625.16,0.00020547,2]
[380229080,1755618654589,-151.0,0.00020547,2]
[380229081,1755618654599,-151.0,0.00020547,2]
[380229082,1755618654608,-151.0,0.00020547,2]
[380229083,1755618654617,-480.0,0.00020547,2]
[380229084,1755618654627,-547.61,0.00020547,2]
[380229085,1755618654637,-604.27,0.00020547,2]
[380229086,1755618654647,-151.0,0.00020547,2]
[380229087,1755618654657,-151.0,0.00020547,2]
[380229088,1755618654667,-747.0,0.00020547,2]
[380229089,1755618654677,-229.77384512,0.00020547,2]
[380229090,1755618654686,-151.0,0.00020547,2]
[380229091,1755618654696,-480.0,0.00020547,2]
[380229092,1755618654706,-480.0,0.00020547,2]
[380229093,1755618654716,-480.0,0.00020547,2]
[380229094,1755618654726,-480.0,0.00020547,2]
[380229095,1755618654736,-480.0,0.00020547,2]
[380229096,1755618654745,-800.68,0.00020547,2]
[380229097,1755618654755,-480.0,0.00020547,2]
[380229098,1755618654765,-480.0,0.00020547,2]
[380229099,1755618654779,-547.63,0.00020547,2]
[380229100,1755618654788,-9407.72,0.00020547,2]
[380229101,1755618654798,-830.84,0.00020547,2]
[380229102,1755618654808,-480.0,0.00020547,2]
[380229103,1755618654818,-151.0,0.00020547,2]
[380229104,1755618654828,-480.0,0.00020547,2]
[380229105,1755618654839,-525.88,0.00020547,2]
[380229106,1755618654848,-480.0,0.00020547,2]
[380229107,1755618654859,-480.0,0.00020547,2]
[380229108,1755618654868,-544.61,0.00020547,2]
[380229109,1755618654878,-151.0,0.00020547,2]
[380229110,1755618654888,-502.17,0.00020547,2]
[380229111,1755618654897,-480.0,0.00020547,2]
[380229112,1755618654907,-1037.36,0.00020547,2]
[380229113,1755618654916,-460.0,0.00020547,2]
[380229114,1755618654926,-480.0,0.00020547,2]
[380229115,1755618654935,-742.49,0.00020547,2]
[380229116,1755618654945,-1543.75,0.00020547,2]
[380229117,1755618654954,-480.0,0.00020547,2]
[380229118,1755618654964,-480.0,0.00020547,2]
[380229119,1755618654973,-480.0,0.00020547,2]
[380229120,1755618654982,-480.0,0.00020547,2]
[380229121,1755618654992,-480.0,0.00020547,2]
[380229122,1755618655002,-2717.77,0.00020547,2]
[380229123,1755618655012,-1344.35,0.00020547,2]
[380229124,1755618655021,-1307.59,0.00020547,2]
[380229125,1755618655031,-151.0,0.00020547,2]
[380229126,1755618655041,-1327.62,0.00020547,2]
[380229127,1755618655050,-151.0,0.00020547,2]
[380229128,1755618655059,-151.0,0.00020547,2]
[380229129,1755618655069,-151.0,0.00020547,2]
[380229130,1755618655079,-480.0,0.00020547,2]
[380229131,1755618655090,-595.01,0.00020547,2]
[380229132,1755618655099,-961.07,0.00020547,2]
[380229133,1755618655109,-480.0,0.00020547,2]
[380229134,1755618655118,-1261.24,0.00020547,2]
[380229135,1755618655128,-1125.26,0.00020547,2]
[380229136,1755618655138,-480.0,0.00020547,2]
[380229137,1755618655148,-640.29,0.00020547,2]
[380229138,1755618655158,-480.0,0.00020547,2]
[380229139,1755618655168,-480.0,0.00020547,2]
[380229140,1755618655178,-480.0,0.00020547,2]
[380229141,1755618655188,-836.41,0.00020547,2]
[380229142,1755618655198,-587.75,0.00020547,2]
[380229143,1755618655207,-502.07,0.00020547,2]
[380229144,1755618655217,-1137.61,0.00020547,2]
[380229145,1755618655227,-1000.0,0.00020547,2]
[380229146,1755618655237,-1000.0,0.00020547,2]
[380229147,1755618655246,-954.51,0.00020547,2]
[380229148,1755618655256,-827.926515,0.00020547,2]
[380229149,1755618655266,-947.83,0.00020547,2]
[380229150,1755618655276,-1343.33,0.00020547,2]
[380229151,1755618655285,-480.0,0.00020547,2]
[380229152,1755618655295,-151.0,0.00020547,2]
[380229153,1755618655305,-524.82,0.00020547,2]
[380229154,1755618655314,-483.68,0.00020547,2]
[380229155,1755618655324,-267.9517493,0.00020547,2]
[380229156,1755618655334,-500.07,0.00020547,2]
[380229157,1755618655345,-2586.75,0.00020547,2]
[380229158,1755618655355,-602.28,0.00020547,2]
[380229159,1755618655365,-151.0,0.00020547,2]
[380229160,1755618655374,-999.92,0.00020547,2]
[380229161,1755618655384,-480.0,0.00020547,2]
[380229162,1755618655394,-151.0,0.00020547,2]
[380229163,1755618655404,-151.0,0.00020547,2]
[380229164,1755618655414,-151.0,0.00020547,2]
[380229165,1755618655423,-480.0,0.00020547,2]
[380229166,1755618655432,-569.41,0.00020547,2]
[380229167,1755618655441,-762.55,0.00020547,2]
[380229168,1755618655451,-191.10637339,0.00020547,2]
[380229169,1755618655460,-480.0,0.00020547,2]
[380229170,1755618655470,-480.0,0.00020547,2]
[380229171,1755618655479,-563.55264914,0.00020547,2]
[380229172,1755618655489,-480.0,0.00020547,2]
[380229173,1755618655498,-480.0,0.00020547,2]
[380229174,1755618655508,-1158.3,0.00020547,2]
[380229175,1755618655517,-769.12,0.00020547,2]
[380229176,1755618655526,-1160.5,0.00020547,2]
[380229177,1755618655537,-1823.15,0.00020547,2]
[380229178,1755618655546,-480.0,0.00020547,2]
[380229179,1755618655555,-935.01,0.00020547,2]
[380229180,1755618655564,-1886.12,0.00020547,2]
[380229181,1755618655573,-480.0,0.00020547,2]
[380229182,1755618655583,-500.0,0.00020548,2]
[380229183,1755618655594,-200.80097555,0.00020568,2]
[380229184,1755618655603,-7137.92033347,0.00020725,2]
[380229185,1755618655613,-160.0,0.00020775,2]
[380229186,1755618655622,-160.0,0.00020775,2]
[380229187,1755618655632,-160.0,0.00020778,2]
[380229188,1755618655641,-160.0,0.00020778,2]
[380229189,1755618655651,-528.6845513,0.00020778,2]
[380229190,1755618655660,-843.93972674,0.00020778,2]
[380229191,1755618655670,-215.79176414,0.00020778,2]
[380229192,1755618655679,-417.15472785,0.00020778,2]
[380229193,1755618655688,-232.21311493,0.00020778,2]
[380229194,1755618655697,-12685.85563623,0.00020778,2]
[380229195,1755618655707,-216.8835046,0.00020778,2]
[380229196,1755618655716,-160.0,0.00020778,2]
[380229197,1755618655725,-160.0,0.00020778,2]
[380229198,1755618655735,-375.88899365,0.00020778,2]
[380229199,1755618655744,-160.0,0.00020778,2]
[380229200,1755618655753,-160.0,0.00020778,2]
[380229201,1755618655763,-160.0,0.00020778,2]
[380229202,1755618655775,-1400.0,0.00020789,2]
[380229203,1755618655785,-420.0,0.00020792,2]
[380229204,1755618655795,-151.0,0.00020808,2]
[380229205,1755618655804,-151.0,0.00020813,2]
[380229206,1755618655814,-480.0,0.00020821,2]
[380229207,1755618655823,-216.84,0.00020821,2]
[380229208,1755618655833,-1576.07,0.00020821,2]
[380229209,1755618655843,-480.0,0.00020821,2]
[380229210,1755618655852,-480.0,0.00020821,2]
[380229211,1755618655861,-480.0,0.00020821,2]
[380229212,1755618655870,-480.0,0.00020821,2]
[380229213,1755618655879,-2883.4,0.00020821,2]
[380229214,1755618655889,-371.05364656,0.00020821,2]
[380229215,1755618655898,-480.0,0.00020821,2]
[380229216,1755618655907,-480.0,0.00020821,2]
[380229217,1755618655917,-480.0,0.00020821,2]
[380229218,1755618655926,-480.0,0.00020821,2]
[380229219,1755618655937,-610.46,0.00020821,2]
[380229220,1755618655947,-480.0,0.00020821,2]
[380229221,1755618655957,-440.0,0.00020821,2]
[380229222,1755618655966,-522.41,0.00020821,2]
[380229223,1755618655976,-210.97495185,0.00020821,2]
[380229224,1755618655986,-2992.99,0.00020821,2]
[380229225,1755618655996,-480.0,0.00020821,2]
[380229226,1755618656006,-480.0,0.00020821,2]
[380229227,1755618656015,-480.0,0.00020821,2]
[380229228,1755618656025,-480.0,0.00020821,2]
[380229229,1755618656035,-824.41,0.00020821,2]
[380229230,1755618656045,-480.0,0.00020821,2]
[380229231,1755618656054,-480.0,0.00020821,2]
[380229232,1755618656065,-496.81566592,0.00020821,2]
[380229233,1755618656075,-489.17,0.00020821,2]
[380229234,1755618656084,-548.22,0.00020821,2]
[380229235,1755618656093,-480.0,0.00020821,2]
[380229236,1755618656103,-480.0,0.00020821,2]
[380229237,1755618656113,-520.07,0.00020821,2]
[380229238,1755618656123,-480.0,0.00020821,2]
[380229239,1755618656133,-1198.36,0.00020821,2]
[380229240,1755618656143,-480.0,0.00020821,2]
[380229241,1755618656153,-480.0,0.00020821,2]
[380229242,1755618656165,-480.0,0.00020821,2]
[380229243,1755618656175,-1089.51,0.00020821,2]
[380229244,1755618656184,-543.75,0.00020821,2]
[380229245,1755618656194,-480.0,0.00020821,2]
[380229246,1755618656204,-1866.23,0.00020821,2]
[380229247,1755618656213,-808.6,0.00020821,2]
[380229248,1755618656227,-1534.07,0.00020821,2]
[380229249,1755618656237,-782.67,0.00020821,2]
[380229250,1755618656246,-480.0,0.00020821,2]
[380229251,1755618656256,-2156.47,0.00020821,2]
[380229252,1755618656265,-850.8,0.00020821,2]
[380229253,1755618656275,-533.17,0.00020821,2]
[380229254,1755618656284,-480.0,0.00020821,2]
[380229255,1755618656294,-1568.73,0.00020821,2]
[380229256,1755618656303,-480.0,0.00020821,2]
[380229257,1755618656313,-480.0,0.00020821,2]
[380229258,1755618656322,-480.0,0.00020821,2]
[380229259,1755618656331,-480.0,0.00020821,2]
[380229260,1755618656342,-480.0,0.00020821,2]
[380229261,1755618656352,-480.0,0.00020821,2]
[380229262,1755618656361,-505.83,0.00020821,2]
[380229263,1755618656372,-480.0,0.00020821,2]
[380229264,1755618656381,-480.0,0.00020821,2]
[380229265,1755618656391,-480.0,0.00020821,2]
[380229266,1755618656401,-8244.61,0.00020821,2]
[380229267,1755618656501,-480.0,0.00020821,2]
[380229268,1755618656510,-659.66,0.00020821,2]
[380229269,1755618656520,-976.04,0.00020821,2]
[380229270,1755618656529,-480.0,0.00020821,2]
[380229271,1755618656539,-625.16,0.00020821,2]
[380229272,1755618656548,-480.0,0.00020821,2]
[380229273,1755618656557,-547.61,0.00020821,2]
[380229274,1755618656566,-604.27,0.00020821,2]
[380229275,1755618656576,-747.0,0.00020821,2]
[380229276,1755618656585,-151.0,0.00020821,2]
[380229277,1755618656596,-151.0,0.00020821,2]
[380229278,1755618656606,-480.0,0.00020821,2]
[380229279,1755618656615,-280.601115,0.00020821,2]
[380229280,1755618656625,-480.0,0.00020821,2]
[380229281,1755618656634,-480.0,0.00020821,2]
[380229282,1755618656643,-480.0,0.00020821,2]
[380229283,1755618656652,-480.0,0.00020821,2]
[380229284,1755618656661,-800.68,0.00020821,2]
[380229285,1755618656671,-151.0,0.00020821,2]
[380229286,1755618656680,-151.0,0.00020821,2]
[380229287,1755618656690,-151.0,0.00020821,2]
[380229288,1755618656699,-151.0,0.00020821,2]
[380229289,1755618656708,-480.0,0.00020821,2]
[380229290,1755618656717,-151.0,0.00020821,2]
[380229291,1755618656727,-547.63,0.00020821,2]
[380229292,1755618656736,-9407.72,0.00020821,2]
[380229293,1755618656745,-830.84,0.00020821,2]
[380229294,1755618656755,-480.0,0.00020821,2]
[380229295,1755618656765,-480.0,0.00020821,2]
[380229296,1755618656777,-480.0,0.00020821,2]
[380229297,1755618656786,-480.0,0.00020821,2]
[380229298,1755618656796,-544.61,0.00020821,2]
[380229299,1755618656805,-502.17,0.00020821,2]
[380229300,1755618656816,-567.39179579,0.00020821,2]
[380229301,1755618656825,-1037.36,0.00020821,2]
[380229302,1755618656835,-480.0,0.00020821,2]
[380229303,1755618656846,-742.49,0.00020821,2]
[380229304,1755618656855,-1543.75,0.00020821,2]
[380229305,1755618656865,-480.0,0.00020821,2]
[380229306,1755618656875,-480.0,0.00020821,2]
[380229307,1755618656884,-480.0,0.00020821,2]
[380229308,1755618656894,-480.0,0.00020821,2]
[380229309,1755618656903,-480.0,0.00020821,2]
[380229310,1755618656913,-2717.77,0.00020821,2]
[380229311,1755618656923,-1344.35,0.00020821,2]
[380229312,1755618656933,-1307.59,0.00020821,2]
[380229313,1755618656942,-279.103583,0.00020821,2]
[380229314,1755618656951,-151.0,0.00020821,2]
[380229315,1755618656961,-1327.62,0.00020821,2]
[380229316,1755618656971,-151.0,0.00020821,2]
[380229317,1755618656980,-151.0,0.00020821,2]
[380229318,1755618656989,-480.0,0.00020821,2]
[380229319,1755618656999,-595.01,0.00020821,2]
[380229320,1755618657008,-961.07,0.00020821,2]
[380229321,1755618657018,-480.0,0.00020821,2]
[380229322,1755618657027,-1261.24,0.00020821,2]
[380229323,1755618657037,-1125.26,0.00020821,2]
[380229324,1755618657046,-480.0,0.00020821,2]
[380229325,1755618657056,-640.29,0.00020821,2]
[380229326,1755618657065,-177.37312554,0.00020821,2]
[380229327,1755618657075,-480.0,0.00020821,2]
[380229328,1755618657086,-391.87546543,0.00020821,2]
[380229329,1755618657102,-836.41,0.00020821,2]
[380229330,1755618657113,-587.75,0.00020821,2]
[380229331,1755618657127,-502.07,0.00020821,2]
[380229332,1755618657138,-1137.61,0.00020821,2]
[380229333,1755618657148,-954.51,0.00020821,2]
[380229334,1755618657158,-947.83,0.00020821,2]
[380229335,1755618657168,-1343.33,0.00020821,2]